bitfinex-derivatives/quotes_BNBF0:USTF0_20241231
["timestamp","ask_amount","ask_price","bid_price","bid_amount"]
[1735628773002,0.25580731,700.26,698.55,0.28630735]
[1735628773403,0.28560412,700.27,698.55,0.28630735]
[1735628774097,0.26302375,700.26,698.55,0.28630735]
[1735628775104,1.06418333,700.14,698.55,0.28630735]
[1735628775302,0.26302375,700.13,698.55,0.28630735]
[1735628776005,1.06418333,700.12,698.55,0.28630735]
[1735628776206,0.26303091,700.11,698.55,0.28630735]
[1735628776906,1.49334859,700.1,698.55,0.28630735]
[1735628777105,0.26303091,700.09,698.55,0.28630735]
[1735628778408,0.28568163,700.08,698.55,0.28630735]
[1735628778611,0.26303091,700.07,698.55,0.28630735]
[1735628778810,0.26302984,700.07,698.55,0.28630735]
[1735628781406,0.26303711,700.06,698.55,0.28630735]
[1735628781610,0.26303711,700.05,698.55,0.28630735]
[1735628781911,0.26303711,700.04,698.55,0.28630735]
[1735628782111,0.26303711,700.07,698.55,0.28630735]
[1735628782311,0.26303711,700.06,698.55,0.28630735]
[1735628782511,0.26303711,700.05,698.55,0.28630735]
[1735628782705,0.26303711,700.04,698.55,0.28630735]
[1735628782909,0.26303711,700.03,698.55,0.28630735]
[1735628783106,0.26303711,700.02,698.55,0.28630735]
[1735628783313,0.28568163,700.08,698.55,0.28630735]
[1735628783314,0.26303711,700.01,698.55,0.28630735]
[1735628783513,0.26303711,700.0,698.55,0.28630735]
[1735628783708,0.26303711,699.99,698.55,0.28630735]
[1735628783911,0.26303711,700.07,698.55,0.28630735]
[1735628784113,0.26303711,699.98,698.55,0.28630735]
[1735628784312,0.28568163,700.08,698.55,0.28630735]
[1735628784506,0.26303231,700.07,698.55,0.28630735]
[1735628786208,0.28568979,700.06,698.55,0.28630735]
[1735628786409,0.26303231,700.05,698.55,0.28630735]
[1735628786613,0.28569796,700.04,698.55,0.28630735]
[1735628787214,0.26297707,700.03,698.55,0.28630735]
[1735628787914,1.49326315,700.02,698.55,0.28630735]
[1735628788119,0.26297707,700.01,698.55,0.28630735]
[1735628789120,1.77896927,700.02,698.55,0.28630735]
[1735628791622,0.2857102,700.01,698.55,0.28630735]
[1735628805337,0.2857102,700.01,698.6,1.06580113]
[1735628806235,0.2857102,700.01,698.56,1.06580113]
[1735628807939,0.2857102,700.01,698.57,0.28629915]
[1735628809642,0.2857102,700.01,698.58,1.06580113]
[1735628810043,0.2857102,700.01,698.59,0.28629095]
[1735628810443,0.2857102,700.01,698.61,1.06580113]
[1735628810638,0.2857102,700.01,698.62,0.28627866]
[1735628823554,1.34989353,700.01,698.62,0.28627866]
[1735628824154,0.26301694,700.0,698.62,0.28627866]
[1735628824654,1.06418333,699.92,698.62,0.28627866]
[1735628825248,1.49341268,699.91,698.62,0.28627866]
[1735628826954,0.2857551,699.9,698.62,0.28627866]
[1735628845966,0.2857551,699.9,698.64,1.06580113]
[1735628846469,0.2857551,699.9,698.65,0.28626637]
[1735628848370,1.06418333,700.24,698.65,0.28626637]
[1735628848571,1.49278274,700.09,698.65,0.28626637]
[1735628848872,1.06418333,700.24,698.65,0.28626637]
[1735628849072,1.49268136,700.09,698.65,0.28626637]
[1735628849277,1.06418333,700.39,698.65,0.28626637]
[1735628849468,0.28555926,700.38,698.65,0.28626637]
[1735628850271,0.26289973,700.37,698.65,0.28626637]
[1735628850472,1.75550106,700.37,698.65,0.28626637]
[1735628850675,0.26289973,700.36,698.65,0.28626637]
[1735628850979,1.06418333,700.35,698.65,0.28626637]
[1735628851179,0.26289973,700.34,698.65,0.28626637]
[1735628852080,0.26291475,700.33,698.65,0.28626637]
[1735628852280,0.26291475,700.32,698.65,0.28626637]
[1735628852481,0.26291475,700.34,698.65,0.28626637]
[1735628852673,1.06418333,700.35,698.65,0.28626637]
[1735628852875,0.26295017,700.34,698.65,0.28626637]
[1735628853078,1.06418333,700.28,698.65,0.28626637]
[1735628853275,0.26295017,700.27,698.65,0.28626637]
[1735628853582,0.26295448,700.26,698.65,0.28626637]
[1735628853778,0.26295448,700.25,698.65,0.28626637]
[1735628853974,0.26295448,700.24,698.65,0.28626637]
[1735628854280,1.06418333,700.28,698.65,0.28626637]
[1735628854780,1.06418333,700.24,698.65,0.28626637]
[1735628854981,0.54856522,700.23,698.65,0.28626637]
[1735628855174,0.5485693,700.22,698.65,0.28626637]
[1735628855378,0.26294479,700.21,698.65,0.28626637]
[1735628855681,0.28562451,700.22,698.65,0.28626637]
[1735628856277,0.26295415,700.21,698.65,0.28626637]
[1735628856476,0.28563267,700.2,698.65,0.28626637]
[1735628856678,0.26295415,700.19,698.65,0.28626637]
[1735628856882,0.28564083,700.18,698.65,0.28626637]
[1735628857182,0.26295415,700.17,698.65,0.28626637]
[1735628857381,0.28564083,700.18,698.65,0.28626637]
[1735628857382,0.54860917,700.16,698.65,0.28626637]
[1735628857582,0.28564899,700.16,698.65,0.28626637]
[1735628860786,1.49296953,700.15,698.65,0.28626637]
[1735628861285,0.28565715,700.14,698.65,0.28626637]
[1735628862085,0.26296985,700.13,698.65,0.28626637]
[1735628862785,0.26299003,700.12,698.65,0.28626637]
[1735628863185,0.26299003,700.11,698.65,0.28626637]
[1735628863389,1.06418333,699.99,698.65,0.28626637]
[1735628864488,1.06418333,700.01,698.65,0.28626637]
[1735628865484,0.28571428,700.0,698.65,0.28626637]
[1735628871089,1.49324713,699.99,698.65,0.28626637]
[1735628871285,0.28572244,699.98,698.65,0.28626637]
[1735628877993,0.26303815,699.97,698.65,0.28626637]
[1735628878197,0.28573061,699.96,698.65,0.28626637]
[1735628880491,0.26309808,699.95,697.74,1.06580113]
[1735628881093,0.28573061,699.96,697.76,0.2866315]
[1735628881094,0.26312077,699.94,697.76,0.2866315]
[1735628881298,0.26312077,699.95,697.76,0.2866315]
[1735628881497,0.26312077,699.93,697.76,0.2866315]
[1735628881798,0.28573061,699.96,697.76,0.2866315]
[1735628881799,0.26312077,699.92,697.76,0.2866315]
[1735628881999,1.06418333,699.81,698.02,1.06580113]
[1735628882202,0.26312077,699.8,698.02,1.06580113]
[1735628882801,0.26312077,699.8,698.0,1.06580113]
[1735628883100,0.26313787,699.79,698.0,1.06580113]
[1735628883300,0.26313787,699.84,698.0,1.06580113]
[1735628883502,0.26313787,699.83,698.0,1.06580113]
[1735628883800,0.26313787,699.82,698.0,1.06580113]
[1735628884003,0.26313787,699.84,698.0,1.06580113]
[1735628884204,0.26313787,699.83,697.76,0.2866315]
[1735628884502,0.26313787,699.82,697.76,0.2866315]
[1735628884701,1.06418333,699.89,697.76,0.2866315]
[1735628884897,0.26314408,699.88,697.76,0.2866315]
[1735628885103,1.06418333,699.87,697.76,0.2866315]
[1735628886002,1.49392556,699.92,697.76,0.2866315]
[1735628886203,0.26311763,699.91,697.76,0.2866315]
[1735628886801,1.49392556,699.92,697.76,0.2866315]
[1735628887107,0.26311528,699.91,697.76,0.2866315]
[1735628887698,1.49392556,699.92,697.76,0.2866315]
[1735628887897,0.26312843,699.91,697.76,0.2866315]
[1735628888304,1.49392556,699.92,697.76,0.2866315]
[1735628891104,0.26308228,699.91,697.76,0.2866315]
[1735628891804,0.26304985,699.9,697.76,0.2866315]
[1735628892204,0.26304985,699.91,697.76,0.2866315]
[1735628892403,0.26304985,699.89,697.76,0.2866315]
[1735628892598,0.26304985,699.9,698.15,1.06580113]
[1735628892803,0.28576327,699.88,698.17,0.28646318]
[1735628894898,0.26303288,699.87,698.17,0.28646318]
[1735628895104,0.28576327,699.88,698.17,0.28646318]
[1735628910015,0.28575102,699.91,698.17,0.28646318]
[1735628917419,0.28575102,699.91,698.24,1.06580113]
[1735628918319,0.28575102,699.91,698.2,1.06580113]
[1735628918524,0.28575102,699.91,698.26,0.28642625]
[1735628920026,0.28575102,699.91,698.29,1.06580113]
[1735628920526,0.28575102,699.91,698.31,0.28640575]
[1735628921321,0.28575102,699.91,698.31,1.35220688]
[1735628922218,0.28575102,699.91,698.33,1.06580113]
[1735628922423,0.28575102,699.91,698.35,0.28638934]
[1735628923323,0.28575102,699.91,698.36,1.06580113]
[1735628923925,0.28575102,699.91,698.38,0.28637704]
[1735628924325,0.28575102,699.91,698.39,1.06580113]
[1735628925122,0.28575102,699.91,698.4,0.28636884]
[1735628926220,0.28575102,699.91,698.4,1.35216997]
[1735628927527,1.34993435,699.91,698.53,1.06580113]
[1735628928521,0.28575102,699.91,698.4,0.28636884]
[1735628929827,1.06418333,699.89,698.42,1.06580113]
[1735628930126,1.06418333,699.89,698.43,0.28635654]
[1735628930827,1.06418333,699.9,698.43,0.28635654]
[1735628931530,0.28575919,699.89,698.43,0.28635654]
[1735628932123,1.34994252,699.89,698.43,0.28635654]
[1735628933035,1.06418333,699.88,698.43,0.28635654]
[1735628933630,0.26306652,699.87,698.43,0.28635654]
[1735628934327,1.06418333,699.79,698.43,0.28635654]
[1735628934523,0.2858041,699.78,698.43,0.28635654]
[1735628934930,1.49363168,699.77,698.43,0.28635654]
[1735628935528,0.26309871,699.76,698.43,0.28635654]
[1735628936134,2.55781501,699.77,698.43,0.28635654]
[1735628936935,1.06418333,699.74,698.43,0.28635654]
[1735628937834,0.28581227,699.76,698.43,0.28635654]
[1735628940640,0.26311376,699.75,698.43,0.28635654]
[1735628941040,0.26310483,699.74,698.43,0.28635654]
[1735628941242,1.32728816,699.75,698.43,0.28635654]
[1735628941441,0.26310483,699.74,698.43,0.28635654]
[1735628942338,0.26314281,699.73,698.43,0.28635654]
[1735628942543,0.26314281,699.72,698.43,0.28635654]
[1735628942736,0.26314281,699.71,698.43,0.28635654]
[1735628942937,0.26314281,699.7,698.43,0.28635654]
[1735628943138,0.26314281,699.69,698.43,0.28635654]
[1735628943341,0.26315416,699.68,698.43,0.28635654]
[1735628943538,0.26315416,699.67,698.43,0.28635654]
[1735628943843,0.26315416,699.66,698.43,0.28635654]
[1735628944040,1.3499956,699.76,698.43,0.28635654]
[1735628944347,0.26315455,699.75,698.43,0.28635654]
[1735628945145,0.28582453,699.73,698.43,0.28635654]
[1735628945343,0.26315455,699.72,698.43,0.28635654]
[1735628946745,0.2858327,699.71,698.43,0.28635654]
[1735628946945,0.26315455,699.7,698.43,0.28635654]
[1735628947346,1.77994282,699.69,698.43,0.28635654]
[1735628947547,0.26315455,699.68,698.43,0.28635654]
[1735628947945,0.28584904,699.67,698.43,0.28635654]
[1735628948248,0.26315455,699.66,698.43,0.28635654]
[1735628948546,0.28585721,699.65,698.43,0.28635654]
[1735628948748,0.26316483,699.64,698.43,0.28635654]
[1735628948947,0.28586538,699.63,698.43,0.28635654]
[1735628949141,0.26316483,699.62,698.43,0.28635654]
[1735628949349,0.28587355,699.61,698.43,0.28635654]
[1735628949544,0.28587355,699.61,697.79,1.06580113]
[1735628949847,0.26317612,699.6,697.81,0.28661096]
[1735628950042,0.28588173,699.59,697.81,0.28661096]
[1735628950243,0.26318192,699.58,697.81,0.28661096]
[1735628950449,0.2858899,699.57,697.81,0.28661096]
[1735628956948,0.2858899,699.57,697.81,1.35241209]
[1735628957651,1.49398435,699.56,698.08,1.06580113]
[1735628958753,1.49398435,699.56,698.11,1.06580113]
[1735628959553,1.49398435,699.56,698.12,0.28648369]
[1735628961850,1.49398435,699.56,698.12,1.35228482]
[1735628962752,1.49398435,699.56,698.14,1.06580113]
[1735628962954,1.49398435,699.56,698.16,0.28646728]
[1735628963750,1.49398435,699.56,698.16,1.35226841]
[1735628964653,1.49398435,699.56,698.17,1.06580113]
[1735628964854,1.49398435,699.56,698.18,0.28645907]
[1735628993276,1.49398435,699.56,698.52,1.06580113]
[1735628994479,1.49398435,699.56,698.53,1.06580113]
[1735628996083,1.49398435,699.56,698.5,1.06580113]
[1735628996782,1.49398435,699.56,698.45,1.06580113]
[1735628998678,1.49398435,699.56,698.44,1.06580113]
[1735628999779,1.49398435,699.56,698.42,1.06580113]
[1735629000485,1.49398435,699.56,698.41,1.06580113]
[1735629000683,1.49398435,699.56,698.41,1.35216587]
[1735629001288,1.49398435,699.56,698.41,0.28636474]
[1735629012797,0.2858899,699.57,698.41,0.28636474]
[1735629014093,0.2858899,699.57,698.51,1.06580113]
[1735629015098,0.2858899,699.57,698.41,0.28636474]
[1735629015099,0.2858899,699.57,698.42,1.06580113]
[1735629015300,0.2858899,699.57,698.43,0.28635654]
[1735629024504,0.2858899,699.57,698.43,1.35215767]
[1735629025405,0.2858899,699.57,698.45,1.06580113]
[1735629026503,1.49333257,699.75,698.45,1.06580113]
[1735629026805,1.49333257,699.75,698.47,1.06580113]
[1735629027407,1.06418333,699.86,698.47,1.06580113]
[1735629027704,1.49322578,699.85,698.68,1.06580113]
[1735629029905,1.49322578,699.85,698.69,0.28624998]
[1735629030504,1.06418333,700.03,698.69,0.28624998]
[1735629030804,1.49299622,699.87,698.69,0.28624998]
[1735629031106,1.49290014,700.02,698.69,0.28624998]
[1735629055227,1.49290014,700.02,698.69,1.35205111]
[1735629056622,1.49290014,700.02,698.69,0.28624998]
[1735629063033,1.06418333,699.98,698.69,0.28624998]
[1735629064234,1.06418333,700.0,698.69,0.28624998]
[1735629066436,1.06418333,700.0,698.69,1.35205111]
[1735629068641,1.06418333,700.0,698.69,0.28624998]
[1735629069839,1.49290014,700.02,698.69,0.28624998]
[1735629070937,1.06418333,699.98,698.69,0.28624998]
[1735629073242,1.06418333,699.99,698.69,0.28624998]
[1735629074341,1.06418333,699.98,698.69,0.28624998]
[1735629075242,1.06418333,700.0,698.7,1.06580113]
[1735629076134,1.06418333,699.98,698.69,0.28624998]
[1735629077342,1.49290014,700.02,698.69,0.28624998]
[1735629081040,0.54871255,700.01,698.69,0.28624998]
[1735629081244,0.26300235,700.0,698.69,0.28624998]
[1735629082244,1.06418333,699.83,698.69,0.28624998]
[1735629082851,1.49338597,699.82,698.69,0.28624998]
[1735629112171,1.49338597,699.82,698.26,1.06580113]
[1735629112367,1.49338597,699.82,698.27,0.28642215]
[1735629112965,1.06418333,699.79,698.27,0.28642215]
[1735629113968,1.06418333,699.78,698.27,0.28642215]
[1735629115069,1.06418333,699.79,698.27,0.28642215]
[1735629116076,1.06418333,699.79,698.39,1.06580113]
[1735629117470,1.06418333,699.79,698.38,1.06580113]
[1735629118677,1.06418333,699.79,698.41,1.06580113]
[1735629119979,2.5575693,699.82,698.54,1.06580113]
[1735629121181,1.06418333,699.81,698.52,1.06580113]
[1735629122080,1.49338597,699.82,698.53,1.06580113]
[1735629124078,1.06418333,699.81,698.53,1.06580113]
[1735629124480,1.06418333,699.81,698.46,1.06580113]
[1735629127485,1.06418333,699.81,698.47,0.28634014]
[1735629134189,1.49338597,699.82,698.47,0.28634014]
[1735629134590,1.77917374,699.82,698.47,0.28634014]
[1735629134791,2.84335707,699.82,698.47,0.28634014]
[1735629136686,1.77917374,699.82,698.47,0.28634014]
[1735629137893,2.84335707,699.82,698.47,0.28634014]
[1735629139790,1.06418333,699.8,698.47,0.28634014]
[1735629140595,1.06418333,699.74,698.49,1.06580113]
[1735629141293,1.4935195,699.73,698.49,1.06580113]
[1735629141494,1.06418333,699.71,698.5,1.06580113]
[1735629142494,2.55770283,699.73,698.52,1.06580113]
[1735629143291,2.55770283,699.73,698.47,0.28634014]
[1735629143292,1.06418333,699.72,698.49,1.06580113]
[1735629144496,1.06418333,699.71,698.55,1.06580113]
[1735629145294,1.06418333,699.7,698.54,1.06580113]
[1735629146197,1.06418333,699.71,698.56,1.06580113]
[1735629147496,1.06418333,699.72,698.57,1.06580113]
[1735629148597,2.55770283,699.73,698.58,1.06580113]
[1735629149598,1.06418333,699.69,698.58,1.06580113]
[1735629150999,1.06418333,699.7,698.63,1.06580113]
[1735629151993,1.06418333,699.71,698.64,1.06580113]
[1735629153097,1.06418333,699.71,698.63,1.06580113]
[1735629153898,1.4935195,699.73,698.64,1.06580113]
[1735629155001,1.4935195,699.73,698.66,1.06580113]
[1735629155799,1.4935195,699.73,698.65,1.06580113]
[1735629156703,1.4935195,699.73,698.63,1.06580113]
[1735629158997,1.4935195,699.73,698.72,1.06580113]
[1735629159801,1.4935195,699.73,698.7,1.06580113]
[1735629160805,1.4935195,699.73,698.69,1.06580113]
[1735629161504,1.4935195,699.73,698.67,1.06580113]
[1735629162604,1.4935195,699.73,698.66,1.06580113]
[1735629163903,1.4935195,699.73,698.59,1.06580113]
[1735629164104,1.4935195,699.73,698.6,0.28628685]
[1735629173615,1.4935195,699.73,698.61,1.06580113]
[1735629173814,1.4935195,699.73,698.61,1.35208389]
[1735629174515,1.4935195,699.73,698.61,0.28628276]
[1735629181219,0.28580002,699.79,698.61,0.28628276]
[1735629182914,0.28580002,699.79,698.61,1.35208389]
[1735629183918,0.28580002,699.79,698.61,0.28628276]
[1735629188116,1.06418333,700.28,698.61,0.28628276]
[1735629188320,1.49291082,700.02,698.61,0.28628276]
[1735629188622,1.06418333,700.28,698.61,0.28628276]
[1735629188819,1.49280942,700.02,698.61,0.28628276]
[1735629189022,1.06418333,700.28,698.61,0.28628276]
[1735629189224,1.49280942,700.02,698.92,1.06580113]
[1735629189424,1.06418333,700.26,698.92,1.06580113]
[1735629189625,0.2628701,700.25,698.92,1.06580113]
[1735629189825,1.49259599,700.02,698.92,1.06580113]
[1735629190125,1.06418333,700.24,698.9,1.06580113]
[1735629191125,1.06418333,700.28,698.92,1.06580113]
[1735629191324,1.49248397,700.23,698.92,1.06580113]
[1735629192124,1.49248397,700.23,698.93,1.06580113]
[1735629194824,1.49248397,700.23,698.92,1.06580113]
[1735629195427,1.49248397,700.23,698.93,0.28615168]
[1735629220650,1.49248397,700.23,698.96,1.06580113]
[1735629221347,1.49248397,700.23,698.93,0.28615168]
[1735629222354,1.49248397,700.23,698.95,1.06580113]
[1735629223452,1.06418333,700.21,698.95,1.06580113]
[1735629224549,1.06418333,700.21,698.93,0.28615168]
[1735629224748,1.06418333,700.18,698.93,0.28615168]
[1735629226955,1.06418333,700.13,698.93,0.28615168]
[1735629227558,1.49282543,700.12,698.93,0.28615168]
[1735629235066,0.28566939,700.11,698.93,0.28615168]
[1735629235559,0.26296971,700.1,698.93,0.28615168]
[1735629236166,0.26296971,700.1,698.37,1.06580113]
[1735629236366,0.28567755,700.09,698.38,0.28637704]
[1735629236561,0.26296971,700.08,698.38,0.28637704]
[1735629236762,0.28568571,700.07,698.38,0.28637704]
[1735629238166,0.26296912,700.06,698.38,0.28637704]
[1735629238371,0.28569387,700.05,698.38,0.28637704]
[1735629239071,1.49323111,700.04,698.38,0.28637704]
[1735629239468,0.28570204,700.03,698.38,0.28637704]
[1735629244171,0.26297107,700.02,698.38,0.28637704]
[1735629244377,0.54868708,700.01,698.38,0.28637704]
[1735629244675,0.28571428,700.0,698.38,0.28637704]
[1735629251277,0.28571428,700.0,698.55,1.06580113]
[1735629253684,0.28571428,700.0,698.57,1.06580113]
[1735629254377,0.28571428,700.0,698.47,2.56997899]
[1735629254378,0.28571428,700.0,698.63,1.06580113]
[1735629255379,0.28571428,700.0,698.68,1.06580113]
[1735629257786,0.28571428,700.0,698.5,1.24451724]
[1735629257787,0.28571428,700.0,698.72,1.06580113]
[1735629258681,0.28571428,700.0,698.75,1.06580113]
[1735629259284,0.28571428,700.0,698.79,1.06580113]
[1735629261988,0.28571428,700.0,698.81,1.06580113]
[1735629263289,1.34989761,700.0,698.8,1.06580113]
[1735629264290,1.06418333,699.99,698.8,1.06580113]
[1735629265290,1.34989761,700.0,698.82,1.06580113]
[1735629266490,0.28571428,700.0,698.82,1.06580113]
[1735629267589,0.28571428,700.0,698.78,1.06580113]
[1735629270385,0.28571428,700.0,698.77,1.06580113]
[1735629271193,0.28571428,700.0,698.76,1.06580113]
[1735629272288,0.28571428,700.0,698.77,1.06580113]
[1735629273194,0.28571428,700.0,698.76,1.06580113]
[1735629274393,0.28571428,700.0,698.77,1.06580113]
[1735629275790,0.28571428,700.0,698.74,1.06580113]
[1735629276694,0.28571428,700.0,698.52,0.28631964]
[1735629276695,0.28571428,700.0,698.75,1.06580113]
[1735629278996,0.28571428,700.0,698.77,1.06580113]
[1735629279796,1.34989761,700.0,698.76,1.06580113]
[1735629280897,1.34989761,700.0,698.78,1.06580113]
[1735629282197,1.06418333,699.99,698.79,1.06580113]
[1735629283098,1.06418333,699.98,698.83,1.06580113]
[1735629283799,1.49286812,699.97,698.83,1.06580113]
[1735629284096,2.55705145,699.97,698.85,1.06580113]
[1735629285092,1.06418333,699.95,698.85,1.06580113]
[1735629286098,1.06418333,699.91,698.86,1.06580113]
[1735629286798,1.06418333,699.91,698.9,1.06580113]
[1735629288803,1.06418333,699.91,698.62,1.06580113]
[1735629289700,1.06418333,699.91,698.64,1.06580113]
[1735629290906,1.06418333,699.93,698.63,1.06580113]
[1735629292100,1.06418333,699.93,698.69,1.06580113]
[1735629293209,1.06418333,699.93,698.68,1.06580113]
[1735629294307,1.49286812,699.97,698.51,1.25147423]
[1735629294308,1.06418333,699.94,698.67,1.06580113]
[1735629295111,1.06418333,699.92,698.66,1.06580113]
[1735629295914,2.55705145,699.97,698.7,1.06580113]
[1735629297114,2.55705145,699.97,692.81,13.6639084]
[1735629297115,1.49286812,699.97,698.75,1.06580113]
[1735629297913,1.49286812,699.97,698.78,1.06580113]
[1735629298816,1.49286812,699.97,698.76,1.06580113]
[1735629299711,1.49286812,699.97,698.77,1.06580113]
[1735629302019,1.49286812,699.97,698.61,0.28628276]
[1735629303019,2.55705145,699.97,698.61,0.28628276]
[1735629303515,0.26299788,699.96,698.61,0.28628276]
[1735629303720,1.06418333,699.91,698.61,0.28628276]
[1735629304322,1.75636662,699.9,698.61,0.28628276]
[1735629304622,1.06418333,699.85,698.61,0.28628276]
[1735629305817,0.26305279,699.84,698.61,0.28628276]
[1735629306018,1.06418333,699.86,698.61,0.28628276]
[1735629306219,0.2630492,699.85,698.61,0.28628276]
[1735629306622,1.06418333,699.86,698.61,0.28628276]
[1735629307724,0.2630431,699.85,698.61,0.28628276]
[1735629308123,1.06418333,699.86,698.61,0.28628276]
[1735629308322,0.26304964,699.85,698.61,0.28628276]
[1735629308719,1.06418333,699.89,698.61,0.28628276]
[1735629308919,0.26305913,699.88,698.61,0.28628276]
[1735629309725,1.06418333,699.89,698.61,0.28628276]
[1735629309921,0.26307811,699.88,698.61,0.28628276]
[1735629311123,0.26309196,699.87,698.02,1.06580113]
[1735629311323,0.26309196,699.88,698.04,0.28651653]
[1735629311524,1.49334859,699.9,698.04,0.28651653]
[1735629311525,0.26309196,699.87,698.04,0.28651653]
[1735629311722,0.26309196,699.86,698.04,0.28651653]
[1735629311923,0.26309196,699.85,698.04,0.28651653]
[1735629312123,0.26309196,699.84,698.04,0.28651653]
[1735629312324,0.26309196,699.83,698.04,0.28651653]
[1735629312628,0.26309196,699.82,698.04,0.28651653]
[1735629312824,0.26309196,699.81,698.04,0.28651653]
[1735629313028,0.26309196,699.8,698.04,0.28651653]
[1735629313222,1.49334859,699.9,698.04,0.28651653]
[1735629313427,0.26310867,699.89,698.04,0.28651653]
[1735629315228,0.26311358,699.88,698.04,0.28651653]
[1735629315427,0.26311358,699.87,698.04,0.28651653]
[1735629315629,0.26311365,699.86,698.04,0.28651653]
[1735629315826,1.49334859,699.9,698.04,0.28651653]
[1735629316131,0.26311533,699.89,698.04,0.28651653]
[1735629319030,1.06418333,699.88,698.04,0.28651653]
[1735629319332,0.26311533,699.87,698.04,0.28651653]
[1735629320333,0.26311533,699.86,698.04,0.28651653]
[1735629320535,0.26311533,699.85,698.04,0.28651653]
[1735629320734,0.26311533,699.84,698.04,0.28651653]
[1735629321036,0.26311533,699.83,698.04,0.28651653]
[1735629321231,0.26311533,699.82,698.04,0.28651653]
[1735629321433,0.26311533,699.81,698.04,0.28651653]
[1735629321634,0.26311533,699.8,698.04,0.28651653]
[1735629321836,0.26311533,699.79,698.04,0.28651653]
[1735629322034,1.49424095,699.83,698.04,0.28651653]
[1735629322035,0.26311533,699.78,698.04,0.28651653]
[1735629322235,0.26311533,699.77,698.04,0.28651653]
[1735629322435,0.26311533,699.76,698.04,0.28651653]
[1735629322636,0.26311533,699.75,698.04,0.28651653]
[1735629322931,1.49424095,699.83,698.04,0.28651653]
[1735629323133,0.26307446,699.82,698.04,0.28651653]
[1735629323637,1.49424095,699.83,698.04,0.28651653]
[1735629323835,0.26307521,699.82,698.04,0.28651653]
[1735629324035,1.49424095,699.83,698.04,0.28651653]
[1735629324437,0.26305475,699.82,698.04,0.28651653]
[1735629325630,0.2630598,699.81,698.04,0.28651653]
[1735629325833,0.2630598,699.8,698.04,0.28651653]
[1735629326030,1.49424095,699.83,698.04,0.28651653]
[1735629334039,1.49424095,699.83,698.19,1.06580113]
[1735629335041,1.49424095,699.83,698.22,1.06580113]
[1735629335838,1.49424095,699.83,698.25,1.06580113]
[1735629337239,1.49424095,699.83,698.29,1.06580113]
[1735629338040,1.49424095,699.83,698.37,1.06580113]
[1735629339742,1.49424095,699.83,698.38,1.06580113]
[1735629340041,1.49424095,699.83,698.39,0.28637294]
[1735629347440,0.28571428,700.0,698.39,0.28637294]
[1735629347841,1.4932151,699.9,698.39,0.28637294]
[1735629348041,0.28571428,700.0,698.39,0.28637294]
[1735629348244,1.49317772,699.91,698.42,1.06580113]
[1735629348442,0.28571428,700.0,698.42,1.06580113]
[1735629349239,0.28571428,700.0,698.44,0.28635244]
[1735629349740,1.4928361,699.99,698.44,0.28635244]
[1735629351345,0.28571428,700.0,698.44,0.28635244]
[1735629352047,1.49286812,700.12,698.44,0.28635244]
[1735629352547,1.06418333,700.7,698.48,1.06580113]
[1735629352747,0.285437,700.68,698.48,1.06580113]
[1735629353047,0.26281274,700.67,698.48,1.06580113]
[1735629353442,1.75512604,700.67,698.48,1.06580113]
[1735629353648,0.26281274,700.66,698.52,1.06580113]
[1735629354850,0.26281274,700.66,698.47,1.06580113]
[1735629355049,0.26280951,700.65,698.47,1.06580113]
[1735629355250,0.26280951,700.64,698.47,1.06580113]
[1735629355549,0.26280951,700.63,698.47,3.50535309]
[1735629355748,0.26280951,700.62,698.48,2.56455696]
[1735629355950,0.26280951,700.61,698.49,2.43955196]
[1735629356150,1.32699284,700.6,698.49,4.7494038]
[1735629356351,0.26280951,700.59,698.5,1.24405071]
[1735629356551,0.26280951,700.58,698.49,1.06580113]
[1735629356747,0.26280951,700.57,698.49,1.06580113]
[1735629356951,1.06418333,700.54,698.48,1.06580113]
[1735629357149,0.26287322,700.53,698.48,1.06580113]
[1735629357949,0.26287322,700.53,698.44,0.28635244]
[1735629358148,0.26287322,700.52,698.44,0.28635244]
[1735629358352,0.26287322,700.51,698.44,0.28635244]
[1735629358553,0.26287322,700.5,698.44,0.28635244]
[1735629358752,0.26287322,700.49,698.44,0.28635244]
[1735629358953,0.26287322,700.48,698.44,0.28635244]
[1735629359153,0.26287322,700.47,698.44,0.28635244]
[1735629359357,0.26287322,700.46,698.44,0.28635244]
[1735629359553,0.26285139,700.45,698.44,0.28635244]
[1735629359750,0.26285139,700.44,698.44,0.28635244]
[1735629359950,0.26285139,700.43,698.44,0.28635244]
[1735629360155,0.26285139,700.42,698.44,0.28635244]
[1735629360355,0.26285139,700.41,698.44,0.28635244]
[1735629360555,1.06418333,700.6,698.44,0.28635244]
[1735629360556,0.26285139,700.4,698.44,0.28635244]
[1735629360852,0.26285139,700.39,698.44,0.28635244]
[1735629361056,0.26285139,700.38,698.44,0.28635244]
[1735629361257,0.26285139,700.37,698.44,0.28635244]
[1735629361457,0.26285139,700.36,698.44,0.28635244]
[1735629361658,1.06418333,700.62,698.44,0.28635244]
[1735629361858,1.06418333,700.59,698.44,0.28635244]
[1735629362058,0.26285883,700.58,698.44,0.28635244]
[1735629362859,0.26285883,700.57,698.44,0.28635244]
[1735629363058,0.26285883,700.56,698.44,0.28635244]
[1735629363258,0.26285883,700.55,698.44,0.28635244]
[1735629363454,0.26285883,700.54,698.44,0.28635244]
[1735629363653,0.285437,700.68,698.44,0.28635244]